Cogmind - Beta 15 @@@ ROGUE MODE // 2025.08.30 @ 13:16:02 Player: beans Result: Destroyed by Y-45 Defender with Heavy Assault Rifle Performance ------------- Evolutions (1) 500 Regions Visited (3) 600 Robots Destroyed (40) 200 Value Destroyed (869) 869 Prototype IDs (0) 0 Alien Tech Used (0) 0 Bonus (0) 0 TOTAL SCORE: 2169 Bonus ------- None Cogmind --------- Core Integrity 0/400 Matter 300/300 Energy 94/100 System Corruption 0% Temperature Cool (9) Movement Core (50) Location -9/Storage Parts ------- > --- POWER (1) -------- (None) > --- PROPULSION (2) --- (None) > --- UTILITY (4) ------ Signal Interpreter > --- WEAPON (2) ------- Flail > --- INVENTORY (5) ---- Drone Bay (2/2) Assault Rifle Light Assault Rifle Peak State ------------ > --- POWER ------------ (None) > --- PROPULSION ------- Light Treads Light Treads > --- UTILITY ---------- Signal Interpreter Targeting Computer Light Armor Plating Drone Bay > --- WEAPON ----------- Beam Cannon Autogun > --- INVENTORY -------- EM Pulse Gun Beam Cannon Assault Rifle Light Assault Rifle Grenade Launcher [Rating: 13] Favorites ----------- Power Light Ion Engine Engine Light Ion Engine Propulsion Light Treads Treads Light Treads Utility Signal Interpreter Device Drone Bay Processor Signal Interpreter Protection Light Armor Plating Weapon Beam Cannon Energy Gun EM Pulse Gun Energy Cannon Beam Cannon Ballistic Gun Autogun Launcher Grenade Launcher Impact Weapon Flail Build | -11 -10 -9 -9 ------- Run | Yrd Mat Mat Sto Slots Evolved 2 | . . 2 . Power . | . . . . Propulsion . | . . . . Utility 2 | . . 2 . Weapon . | . . . . Parts Attached 19 | 5 5 4 5 Power 2 | 1 . . 1 Engine 2 | 1 . . 1 Core . | . . . . Reactor . | . . . . Propulsion 3 | 2 . . 1 Treads 3 | 2 . . 1 Leg . | . . . . Wheel . | . . . . Hover . | . . . . Flight . | . . . . Utility 5 | . 1 2 2 Device 2 | . . . 2 Storage . | . . . . Processor 2 | . 1 1 . Hackware . | . . . . Protection 1 | . . 1 . Artifact . | . . . . Weapon 9 | 2 4 2 1 Energy Gun 2 | . 2 . . Energy Cannon 2 | . 1 1 . Ballistic Gun 3 | 2 . 1 . Ballistic Cannon . | . . . . Launcher 1 | . 1 . . Special Weapon . | . . . . Impact Weapon 1 | . . . 1 Slashing Weapon . | . . . . Piercing Weapon . | . . . . Special Melee Weapon . | . . . . Unidentified Prototypes . | . . . . Parts Lost 12 | . . 2 10 Power 2 | . . 1 1 Propulsion 3 | . . . 3 Utility 3 | . . . 3 Weapon 4 | . . 1 3 Highest Loss Streak 8 | . . 2 8 To Critical Strikes . | . . . . Average Backups 3 | . 2 5 4 Power . | . . . . Propulsion . | . . . . Utility . | . . . . Weapon 3 | . 2 5 4 Tool/Special . | . . . . Unused Backups . | . . . . Power . | . . . . Propulsion . | . . . . Utility . | . . . . Weapon . | . . . . Tool/Special . | . . . . Average Slot Usage (%) 76 | . 82 70 75 Engine 8 | . 14 6 5 Treads 22 | . 28 22 17 Device 1 | . . . 4 Processor 16 | . 11 17 20 Protection 3 | . . 2 8 Energy Gun 6 | . 14 7 . Energy Cannon 6 | . 3 5 9 Ballistic Gun 7 | . 10 4 8 Launcher 1 | . . 4 . Peak Build Rating 13 | 5 6 8 13 Average Rating 7 | 3 5 6 9 On Entrance 4 | . 5 6 8 Naked Turns . | . . . . Heaviest Build 17 | 6 8 9 17 Greatest Support 40 | 40 40 40 40 Greatest Overweight (x) . | . . . . Average Overweight (x) . | . . . . Largest Inventory Capacity 5 | 5 5 5 5 Average Capacity 5 | 5 5 5 5 Most Carried 5 | 4 5 5 5 Average Carried 3 | . 2 4 4 Final Capacity 5 | 5 5 5 5 Final Carried 5 | . 5 5 3 Class Distribution -------------------- 100% | Mutant Dominant Class ---------------- Mutant | -10/Materials Mutant | -9/Materials Mutant | -9/Storage Resources | -11 -10 -9 -9 ----------- Run | Yrd Mat Mat Sto Matter Collected 684 | 199 129 216 140 Remotely . | . . . . Salvage Created 1180 | . 317 367 496 Parts 66 | . 16 24 26 Haulers Intercepted 1 | . 1 . . Recyclers Shooed . | . . . . Parts Field Recycled . | . . . . Retrieved Matter . | . . . . Parts Self-Destructed . | . . . . Prevented . | . . . . Kills | -11 -10 -9 -9 ------- Run | Yrd Mat Mat Sto Combat Hostiles Destroyed 27 | . 7 11 9 Guns 9 | . 5 2 2 Cannons 7 | . . 1 6 AOE 10 | . 2 8 . Classes Destroyed 9 | . 5 2 2 Worker 7 | . 2 4 1 Hauler 1 | . 1 . . Recycler 2 | . 1 . 1 Operator 1 | . . . 1 Watcher 2 | . . 1 1 Swarmer 9 | . 3 4 2 Grunt 12 | . 4 5 3 Duelist 1 | . . . 1 Sentry 5 | . . 2 3 Best Kill Streak 7 | . 5 7 5 Combat Bots Only 5 | . 3 5 3 Max Kills in Single Turn 4 | . 2 4 1 Gunslinging . | . . . . Exploded 3 | . 2 3 . Melee . | . . . . Uniques/NPCs Destroyed . | . . . . Combat | -11 -10 -9 -9 -------- Run | Yrd Mat Mat Sto Hostile Shots Fired 144 | . 22 44 78 Missed 46 | . 7 18 21 Hits 98 | . 15 26 57 Melee 11 | . . . 11 Projectile 87 | . 15 26 46 Critical Strikes 3 | . . . 3 Damage Taken 1490 | . 160 338 992 Core 422 | . 22 62 338 Absorbed by Shields . | . . . . Core Remaining (%) 95 | 100 91 . . Volleys Fired 80 | . 18 26 36 Largest 2 | . 2 2 2 Hottest 120 | . 100 83 120 Shots Fired 144 | . 32 43 69 Gun 79 | . 26 24 29 Cannon 54 | . 2 12 40 Launcher 11 | . 4 7 . Special . | . . . . Kinetic 45 | . . 16 29 Thermal 54 | . 2 12 40 Explosive 11 | . 4 7 . Electromagnetic 34 | . 26 8 . Robot Hit Streak 9 | . 6 6 9 Robot Miss Streak 3 | . 2 3 3 Penetration Max . | . . . . Secondary Targets . | . . . . Shots Hit Robots 96 | . 17 27 52 Core Hits 56 | . 16 25 15 Critical Kills . | . . . . Critical Parts Destroyed 1 | . . . 1 Critical Strikes 1 | . . . 1 Smash 1 | . . . 1 Melee Attacks 6 | . . . 6 Impact 6 | . . . 6 Slashing . | . . . . Piercing . | . . . . Sneak Attacks . | . . . . Combat Hostiles . | . . . . Follow-up Attacks . | . . . . Damage Inflicted 2553 | . 608 952 993 Guns 654 | . 200 186 268 Cannons 699 | . . 175 524 Explosions 1024 | . 408 591 25 Melee 176 | . . . 176 Ramming . | . . . . Kinetic 370 | . . 102 268 Thermal 699 | . . 175 524 Explosive 1024 | . 408 591 25 Electromagnetic 284 | . 200 84 . Impact 176 | . . . 176 Slashing . | . . . . Piercing . | . . . . Highest Corruption . | . . . . Average Corruption . | . . . . Corruption Purged . | . . . . Corruption Blocked . | . . . . Overload Shots . | . . . . Overflow Damage 66 | . . 16 50 Projectiles . | . . . . Explosions 16 | . . 16 . Melee 50 | . . . 50 Knockbacks 1 | . . . 1 Impact 1 | . . . 1 Kinetic . | . . . . Secondary . | . . . . Self-Inflicted Damage 95 | . 17 24 54 Shots 6 | . 2 2 2 Rammed . | . . . . Targets Rammed . | . . . . Kicked . | . . . . Crushed . | . . . . Highest Temperature 367 | . 54 64 367 Average Temperature 64 | . 20 23 97 Received Heat Transfer 393 | . 30 123 240 Effects 3 | . . . 3 Shutdowns 1 | . . . 1 Short Circuit 2 | . . . 2 Siege Activations . | . . . . Martial Activations . | . . . . Shielding Activations . | . . . . Robots Disrupted . | . . . . Combat Hostiles . | . . . . Robots Corrupted 1 | . . . 1 Combat Hostiles 1 | . . . 1 Parts Fried 2 | . 1 . 1 Impact Corruptions 3 | . . . 3 Robots Melted . | . . . . Combat Hostiles . | . . . . Parts Melted 1 | . . . 1 Heat Transferred 1480 | . . 370 1110 Parts Sabotaged . | . . . . Parts Stolen . | . . . . Parts Stripped . | . . . . Power Chain Reactions . | . . . . Alert | -11 -10 -9 -9 ------- Run | Yrd Mat Mat Sto Maximum Alert Level 1 | . . 1 1 Low Security (%) 88 | 100 100 62 96 Level 1 11 | . . 37 3 Level 2 . | . . . . Level 3 . | . . . . Level 4 . | . . . . Level 5 . | . . . . High Security . | . . . . Max Security . | . . . . Peak Influence 291 | . 181 291 226 Initial 113 | . . 63 113 Average 110 | . 59 178 124 Influence Increases 889 | . 221 355 313 Destroy 0b10 Robot/C 540 | . 140 220 180 Destroy 0b10 Robot/NC 65 | . 20 25 20 Destroy Leader 136 | . 22 52 62 Disable Machine 45 | . . 15 30 Destroy Structure 88 | . 24 43 21 Lose Combat Pursuer 15 | . 15 . . Influence Decreases 733 | . 70 238 425 Entered New Map 243 | . . 88 155 Time Decay 370 | . 70 130 170 Lost Part 120 | . . 20 100 Squads Dispatched 4 | . 1 2 1 Investigation 1 | . 1 . . Extermination . | . . . . Reinforcement 3 | . . 2 1 Assault . | . . . . Garrison . | . . . . Intercept . | . . . . Searches Triggered . | . . . . Construction Impeded 1 | . . 1 . Haulers Reinforced . | . . . . Active Scanning Responses . | . . . . Cargo Convoy Interrupts . | . . . . Stealth | -11 -10 -9 -9 --------- Run | Yrd Mat Mat Sto Distress Signals 6 | . 3 1 2 Communications Jammed . | . . . . Distress Signals . | . . . . Times Spotted 40 | . 10 14 16 Peak Tracking Total 5 | . 5 5 4 Tactical Retreats 1 | . 1 . . Traps | -11 -10 -9 -9 ------- Run | Yrd Mat Mat Sto Traps Triggered 1 | . 1 . . Indirectly . | . . . . Trap Hack Attempts . | . . . . Triggered . | . . . . Disarmed . | . . . . Reprogrammed . | . . . . Reused . | . . . . Traps Extracted . | . . . . Installed . | . . . . Triggered . | . . . . Machines | -11 -10 -9 -9 ---------- Run | Yrd Mat Mat Sto Machines Disabled 3 | . . 1 2 Max in Single Turn 1 | . . 1 1 Machines Repaired . | . . . . Machines Dismantled . | . . . . Machines Sabotaged . | . . . . Overloaded Fab Kills . | . . . . Hacking | -11 -10 -9 -9 --------- Run | Yrd Mat Mat Sto Machines Accessed 2 | . . . 2 Terminals 2 | . . . 2 Fabricators . | . . . . Repair Stations . | . . . . Recycling Units . | . . . . Scanalyzers . | . . . . Garrison Access . | . . . . Total Hacks 3 | . . . 3 Successful 2 | . . . 2 Failed 1 | . . . 1 Catastrophic . | . . . . Database Lockouts . | . . . . Manual 1 | . . . 1 Terminals 3 | . . . 3 Fabricators . | . . . . Repair Stations . | . . . . Recycling Units . | . . . . Scanalyzers . | . . . . Garrison Access . | . . . . Terminal Hacks 2 | . . . 2 Open Door 1 | . . . 1 Alert Level 1 | . . . 1 Fabricator Hacks . | . . . . Repair Station Hacks . | . . . . Recycling Unit Hacks . | . . . . Scanalyzer . | . . . . Garrison Access Hacks . | . . . . Unauthorized Hacks . | . . . . Terminals . | . . . . Fabricators . | . . . . Repair Stations . | . . . . Recycling Units . | . . . . Scanalyzers . | . . . . Garrison Access . | . . . . Data Cores Recovered . | . . . . Used . | . . . . Hacking Detections 2 | . . . 2 Full Trace Events . | . . . . Feedback Events . | . . . . Feedback Blocked . | . . . . Robot Schematics Acquired . | . . . . Robots Built . | . . . . Authchips . | . . . . Time . | . . . . Total Robot Build Rating . | . . . . Part Schematics Acquired . | . . . . Parts Built . | . . . . Authchips . | . . . . Time . | . . . . Total Part Build Rating . | . . . . Parts Repaired . | . . . . Time . | . . . . Parts Recycled . | . . . . Recycled Matter . | . . . . Retrieved Matter . | . . . . Retrieved Components . | . . . . Parts Scanalyzed . | . . . . Part Schematics Acquired . | . . . . Parts Damaged . | . . . . Bothacking | -11 -10 -9 -9 ------------ Run | Yrd Mat Mat Sto Used RIF Installer . | . . . . Robots Hacked . | . . . . Non-combat . | . . . . Combat . | . . . . Robot Hacks Applied . | . . . . Relay Couplers Released . | . . . . Fabnet Peak Effective % . | . . . . Robots Rewired . | . . . . Allies Hacked . | . . . . Hacks Repelled . | . . . . Allies | -11 -10 -9 -9 -------- Run | Yrd Mat Mat Sto Total Allies . | . . . . Largest Group . | . . . . Highest-Rated Group . | . . . . Highest-Rated Ally . | . . . . Total Orders . | . . . . Ally Attacks . | . . . . Total Damage . | . . . . Kills . | . . . . Allies Corrupted . | . . . . Allies Melted . | . . . . Intel | -11 -10 -9 -9 ------- Run | Yrd Mat Mat Sto Active Infowar (turns) . | . . . . Robot Analysis Total . | . . . . Derelict Logs Recovered . | . . . . Drone Launches . | . . . . Drone Recoveries . | . . . . Exploration | -11 -10 -9 -9 ------------- Run | Yrd Mat Mat Sto Turns Passed 956 | 79 272 262 343 Spaces Moved 447 | 55 128 116 148 Core 36 | 16 . . 20 Treads 411 | 39 128 116 128 Legs . | . . . . Wheels . | . . . . Hover . | . . . . Flight . | . . . . Fastest Speed 50 | 50 160 160 50 Average Speed 151 | 128 160 160 145 Slowest Speed 160 | 160 160 160 160 Overloaded Moves . | . . . . Propulsion Burnouts . | . . . . Robots Hopped . | . . . . Potential Cave-ins . | . . . . Cave-ins Triggered . | . . . . Exploration Rate (%) 22 | 4 29 22 36 Regions Visited 3 Branch Regions 1 Pre-discovered Areas . | . . . . Known Exits Taken 2 | . 1 1 . Unknown Exits Taken 1 | 1 . . . Scrap Searched . | . . . . Spaces Dug . | . . . . Terrain Destroyed 80 | . 24 35 21 Melee . | . . . . Projectile . | . . . . AOE 80 | . 24 35 21 Terrain Rammed . | . . . . Walls Destroyed . | . . . . Machines Disabled . | . . . . Actions | -11 -10 -9 -9 --------- Run | Yrd Mat Mat Sto Total 580 | 64 161 150 205 Wait 9 | . 4 . 5 Move 444 | 54 127 115 148 Hop . | . . . . Pick Up 13 | 5 6 1 1 Fast Attach 7 | . . 3 4 Attach 10 | 5 1 1 3 Detach 1 | . . . 1 Swap 8 | . 5 3 . Drop 2 | . . 1 1 Fire 80 | . 18 26 36 Melee 6 | . . . 6 Ram . | . . . . Kick . | . . . . Crush . | . . . . Escape Stasis . | . . . . Rewire . | . . . . Trap . | . . . . Miscellaneous . | . . . . Route ------- -11/Scrapyard -10/Materials -9/Materials -9/Storage History --------- Turn | Location | Event 6 | -11/Scrapyard | Discovered new exit (range 16) 80 | -11/Scrapyard | Entered Materials 313 | -10/Materials | Build established: Mutant 325 | -10/Materials | Discovered new exit (range 15) 351 | -10/Materials | Identified exit to Materials 352 | -10/Materials | Entered another Materials area 352 | -9/Materials | Evolved 2 slots: Utility x2 587 | -9/Materials | Discovered new exit (range 8) 600 | -9/Materials | Identified exit to Storage 614 | -9/Materials | Entered Storage 904 | -9/Storage | Core integrity fell below 50% 944 | -9/Storage | Core integrity fell below 20% 957 | -9/Storage | Destroyed by Y-45 Defender with Heavy Assault Rifle Last Messages --------------- Imp. Ion Engine destroyed. K-01 Serf collects debris. Lgt. Treads destroyed. K-01 Serf collects debris. Acquired Flail. K-01 Serf collects debris. Destroyed Imp. Aluminum Leg. Destroyed Melee Analysis Suite. L-31 Rogue system corrupted by crushing effect. L-31 Rogue knocked back. L-31 Rogue system terminally corrupted. Imp. Aluminum Leg fried. K-01 Serf collects debris. Acquired 10 matter. Y-45 Defender suffers critical hit (Smash). Destroyed Lgt. Treads. Y-45 Defender system corrupted by crushing effect. Y-45 Defender misfires. Map ----- +----------------------------------------------------+ | | | | | | | | | | | | | | | | | | | | | ????????????????????????????####?????????????????? | | ??????????????????????????###"""#??##########????? | | ????????????????????????### #"T"#### ##???? | | ????????????????????????# # #???? | | ????????????????????????# ##??? | | ????????????????????????# ! #??? | | ????????????????????????# """ """ # % ##??? | | ????????????????????????# """ """ #??? | | ????????????????????????# """ """ ##??? | | ????????????????????????# # ##???? | | ????????????????????????# ! #/ ] #????? | | ????????????????????????#####+#########+########## | | ???????????????????????????# ==%= | | ??????????????############## [=*% = | | ??????? %g Y = | | ??????????????########+##@ ##+######+##+#####% | | ?????????????????# # # ????????? ???#= | | ?????????????????# # +?????????? ???# | | ?????????????????# /=# #####?????????"" ""??#* | | ?????????????????# # #?????????????"" ""??#%! | | ?????????????????# + #????????????""" """?#*= | | ?????????????????# ###???????????? ?#= | | ?????????????????########?????????????? ?#[% | | ????????????????????????????????????????? ???#%[ | | ?????????????????????????????????????????###???#! | | ???????????????????????????????????????????????# | | ???????????????????????????????????????????????# | | ???????????????????????????????????????????????# | | ???????????????????????????????????????????????# | | ???????????????????????????????????????????????# | | ???????????????????????????????????????????????# | | ???????????????????????????????????????????????# | | ??????????????????????????????????????????##???#= | | ?????????????????????????????????????????? ??# * | | ?????????????????????????????????????????? """?# | | ????????????????????????????????????????????"" # | | ?????????????????????????????????????????????? + ! | | ?????????????????????????????????????????????? #= | | ?????????????????????????????????????????????" # | | ????????????????????????????????????????????? ?# ! | +----------------------------------------------------+ Best States ------------- Heat Dissipation 38 Energy Generation 12 Energy Capacity 265 Matter Stores 300 Matter Capacity 300 Sight Range 16 Terrain Scan Density 10 Armor Coverage 150 Evasion (%) 50 Targeting Accuracy 5 Recoil Reduction 2 Item Schematics ----------------- None Robot Schematics ------------------ None Fabricated ------------ Nothing Repaired ---------- Nothing Alien Tech Used ----------------- None Achievements -------------- None Challenges ------------ None Game ------ Seed AccelerationPitchforkChip Manual? 0 Play Time 00:13:07 Cumulative 113.3 hours Start 2025.08.30 @ 11:09:51 End 2025.08.30 @ 13:16:02 Sessions 1 Manual Loads 0 Difficulty Rogue Special Mode None Game No. 418 Rogue 418 Adventurer 0 Explorer 0 Win Type - Total 0 Types 0/0/0/0/0/0/0/0/0/0 Lore% 44 Gallery% 44 Achievement% 31 Wizard Run 0 Options --------- Layout 2 ASCII 0 Keyboard 0 Movement Mouse Keybinds 0 Fullscreen 2 Font 24/Smallcaps Map View 50x44 Zoom Use 0% Tactical HUD 0 Map Filters NONE Filters NONE Steam 1 RUN: e71679af-9bcb-40c7-b952-2f7f2f92f2b9